bitfinex-derivatives/quotes_BTCF0:USTF0_20251217
["timestamp","ask_amount","ask_price","bid_price","bid_amount"]
[1765983202970,0.12014815,88668.0,88635.0,0.0112857]
[1765983203176,0.00016916,88660.0,88643.0,0.00016916]
[1765983203473,0.0112836,88653.0,88643.0,0.00016916]
[1765983203769,0.00012541,88659.0,88648.0,0.0001335]
[1765983204082,0.0112839,88651.0,88643.0,0.00016916]
[1765983204267,0.0112855,88638.0,88609.0,0.011289]
[1765983204461,0.00011657,88637.0,88593.0,0.0112911]
[1765983204776,0.00011657,88637.0,88611.0,0.0112888]
[1765983204777,0.0112857,88636.0,88611.0,0.0112888]
[1765983204960,0.0112865,88630.0,88590.0,0.35014497]
[1765983205273,0.00016927,88619.0,88601.0,0.00016927]
[1765983205480,0.0112881,88618.0,88601.0,0.00016927]
[1765983205676,0.00016927,88619.0,88601.0,0.00016927]
[1765983205861,0.01129,88603.0,88601.0,0.00016927]
[1765983206061,0.00011303,88602.0,88577.0,0.0112931]
[1765983206267,0.00011303,88602.0,88571.0,0.0001335]
[1765983206560,0.0564351,88626.0,88540.0,1.41072]
[1765983206561,0.01138628,88601.0,88575.0,0.0112934]
[1765983206765,0.01138628,88601.0,88555.0,0.0564801]
[1765983206766,9.608e-05,88601.0,88552.0,0.01142198]
[1765983206965,0.056459,88589.0,88552.0,0.00012568]
[1765983207176,0.0112939,88571.0,88568.0,0.00016927]
[1765983207473,0.00016927,88585.0,88544.0,0.056487]
[1765983207675,1.41088,88592.0,88568.0,0.0112942]
[1765983207875,1.41088,88592.0,88560.0,0.0112953]
[1765983208068,1.41088,88592.0,88559.0,0.0001335]
[1765983208069,0.0112914,88591.0,88567.0,0.0112944]
[1765983208375,0.00016937,88588.0,88583.0,0.0112923]
[1765983208578,0.00012065,88590.0,88570.0,0.00024728]
[1765983208579,0.00012065,88590.0,88576.0,0.0112932]
[1765983208775,0.2105,88620.0,88577.0,0.01140688]
[1765983208776,0.00016937,88594.0,88577.0,0.01140688]
[1765983208968,0.0112917,88589.0,88575.0,0.0001335]
[1765983209170,0.00016937,88594.0,88577.0,0.00011378]
[1765983209475,0.00016937,88594.0,88589.0,0.0112916]
[1765983209670,0.0112879,88619.0,88599.0,0.0112903]
[1765983209869,9.832e-05,88618.0,88599.0,0.0112903]
[1765983210072,9.832e-05,88618.0,88577.0,0.0564658]
[1765983210073,0.0112898,88604.0,88560.0,0.35014497]
[1765983210272,0.0112898,88604.0,88554.0,0.0564804]
[1765983210273,0.12581166,88629.0,88601.0,0.01129]
[1765983210475,5.0,88670.0,88624.0,0.0564359]
[1765983210669,0.0112837,88652.0,88630.0,0.0112864]
[1765983210865,0.00016927,88645.0,88641.0,0.011285]
[1765983211065,0.00016927,88645.0,88627.0,0.00016927]
[1765983211270,0.00016927,88645.0,88633.0,0.011286]
[1765983211479,0.00016927,88645.0,88627.0,0.00016927]
[1765983211675,0.00016927,88645.0,88642.0,0.0112848]
[1765983211978,0.21058,88640.0,88588.0,0.00014613]
[1765983212167,1.41261,88648.0,88647.0,0.0112843]
[1765983212168,0.00125,88648.0,88647.0,0.0112843]
[1765983212367,5.0,88670.0,88669.0,0.0112815]
[1765983212368,4.61096173,88670.0,88669.0,0.0112815]
[1765983212570,0.0563648,88737.0,88663.0,0.056411]
[1765983212771,0.0112728,88738.0,88663.0,0.056411]
[1765983212772,0.0112757,88715.0,88691.0,0.0112786]
[1765983213077,7e-08,88712.0,88710.0,0.0112761]
[1765983213376,0.21058,88720.0,88714.0,0.0112757]
[1765983213575,0.21058,88720.0,88698.0,0.0563884]
[1765983213576,0.0112717,88746.0,88722.0,0.0112746]
[1765983213874,1.16,88759.0,88720.0,0.35014497]
[1765983213875,0.0112706,88755.0,88720.0,0.35014497]
[1765983214069,0.0112702,88758.0,88720.0,0.35014497]
[1765983214376,0.00016906,88746.0,88729.0,0.01144286]
[1765983214578,0.0112725,88740.0,88729.0,0.00016906]
[1765983214775,0.00016906,88746.0,88729.0,0.00016906]
[1765983215078,0.00016906,88746.0,88730.0,0.0112736]
[1765983215383,0.00016906,88746.0,88729.0,0.00016906]
[1765983215577,0.00016906,88746.0,88693.0,0.0112783]
[1765983215578,0.20785,88724.0,88693.0,0.0112783]
[1765983215773,0.20785,88724.0,88688.0,0.011279]
[1765983215970,0.20785,88724.0,88682.0,0.0563989]
[1765983216278,0.011271,88752.0,88710.0,0.35014497]
[1765983216577,0.20785,88724.0,88722.0,0.00011289]
[1765983216774,0.0112753,88718.0,88680.0,0.35014497]
[1765983216978,0.20785,88724.0,88702.0,0.0112773]
[1765983217172,0.20785,88724.0,88721.0,0.0112748]
[1765983217374,0.20785,88724.0,88700.0,0.35014497]
[1765983217880,0.21058,88760.0,88714.0,0.35014497]
[1765983218080,0.21058,88760.0,88706.0,0.0563834]
[1765983218081,0.00016906,88746.0,88741.0,0.0112723]
[1765983218576,6e-08,88746.0,88743.0,0.011272]
[1765983218778,0.21058,88840.0,88747.0,0.0112715]
[1765983218987,0.21058,88840.0,88780.0,0.35014497]
[1765983219183,0.21058,88840.0,88810.0,0.35014497]
[1765983219477,0.36139847,88890.0,88837.0,0.0112601]
[1765983219478,0.0112568,88864.0,88837.0,0.0112601]
[1765983219677,0.10424,88901.0,88839.0,0.0112598]
[1765983219678,0.0112566,88865.0,88839.0,0.0112598]
[1765983219881,0.0562642,88895.0,88842.0,0.01142778]
[1765983219882,0.00016883,88859.0,88842.0,0.01142778]
[1765983220184,0.00016883,88859.0,88855.0,0.0112577]
[1765983220478,0.00016883,88859.0,88848.0,0.0112587]
[1765983220680,0.00016883,88859.0,88846.0,0.0112589]
[1765983220868,0.00016883,88859.0,88797.0,0.00011537]
[1765983220869,0.0562896,88855.0,88797.0,0.00011537]
[1765983221071,0.20785,88840.0,88797.0,0.01138057]
[1765983221275,0.0112601,88838.0,88804.0,0.0112643]
[1765983221578,0.20785,88840.0,88797.0,0.00011537]
[1765983221579,0.0112625,88819.0,88797.0,0.00011537]
[1765983221773,0.20785,88840.0,88803.0,0.0112643]
[1765983221774,0.0112615,88827.0,88803.0,0.0112643]
[1765983222077,0.00016883,88824.0,88819.0,0.00033798]
[1765983222270,0.00016883,88824.0,88802.0,0.0112645]
[1765983222271,0.00016883,88824.0,88813.0,0.0112632]
[1765983222473,0.00016883,88824.0,88800.0,0.35014497]
[1765983222669,0.00016883,88824.0,88821.0,0.0112621]
[1765983222975,0.02880464,88901.0,88814.0,0.35014497]
[1765983222976,0.0112533,88891.0,88860.0,0.0112571]
[1765983223177,0.011249,88925.0,88852.0,0.0112581]
[1765983223178,0.0112548,88879.0,88852.0,0.0112581]
[1765983223374,0.011254,88886.0,88841.0,0.056298]
[1765983223574,0.011254,88886.0,88862.0,0.0112569]
[1765983223875,0.011254,88886.0,88840.0,0.35014497]
[1765983223876,0.01142353,88880.0,88863.0,0.00016883]
[1765983224077,0.00016883,88880.0,88863.0,0.01142553]
[1765983224284,0.00016883,88880.0,88867.0,0.0112562]
[1765983224483,0.00016883,88880.0,88864.0,0.0112566]
[1765983224675,0.00016883,88880.0,88863.0,0.00016883]
[1765983225182,0.0112558,88871.0,88848.0,0.0112587]
[1765983225379,0.0112558,88871.0,88826.0,0.0563077]
[1765983225380,0.0112548,88880.0,88855.0,0.0112578]
[1765983225589,0.0562659,88893.0,88848.0,0.0112587]
[1765983225774,0.0562659,88893.0,88817.0,1.40956]
[1765983225775,0.0562885,88857.0,88762.0,0.0563481]
[1765983225975,0.0112609,88831.0,88790.0,0.35014497]
[1765983226279,0.00016883,88823.0,88773.0,0.0563414]
[1765983226584,0.00016883,88823.0,88811.0,0.0112634]
[1765983226768,0.00016883,88823.0,88782.0,0.0563357]
[1765983226769,0.00016883,88823.0,88817.0,0.0112626]
[1765983226972,0.00016883,88823.0,88780.0,0.35014497]
[1765983227187,0.00016883,88823.0,88800.0,0.35014497]
[1765983227377,0.0112622,88821.0,88804.0,0.0112642]
[1765983227775,0.00016883,88823.0,88800.0,0.35014497]
[1765983227974,0.00016883,88823.0,88820.0,0.0112623]
[1765983228779,0.00016883,88823.0,88822.0,0.011262]
[1765983228780,3e-08,88823.0,88822.0,0.011262]
[1765983229185,0.20785,88881.0,88875.0,0.0112552]
[1765983229379,0.0112477,88936.0,88850.0,0.0112584]
[1765983229380,0.0112475,88937.0,88917.0,0.0112499]
[1765983229577,0.02865853,88944.0,88928.0,0.0112485]
[1765983229879,0.0112384,89009.0,88955.0,0.0112451]
[1765983230078,0.0112422,88979.0,88931.0,0.00556]
[1765983230379,0.35114496,89020.0,88961.0,0.0112444]
[1765983230380,0.00016862,88964.0,88961.0,0.0112444]
[1765983230583,0.00016862,88964.0,88959.0,0.0112446]
[1765983230990,0.00016862,88964.0,88951.0,0.0112457]
[1765983231173,0.00016862,88964.0,88946.0,0.00016814]
[1765983231484,0.00016862,88964.0,88963.0,0.0112442]
[1765983231789,2e-08,88964.0,88963.0,0.0112442]
[1765983232084,2e-08,88964.0,88946.0,0.00016814]
[1765983232478,2e-08,88964.0,88963.0,0.0112442]
[1765983232679,0.0112411,88988.0,88962.0,0.0112442]
[1765983232879,0.15785002,88998.0,88940.0,0.35014497]
[1765983233080,0.0562023,88993.0,88913.0,1.40824]
[1765983233282,0.15785002,88998.0,88920.0,0.35014497]
[1765983233283,0.0562148,88973.0,88920.0,0.35014497]
[1765983233591,0.11743834,88992.0,88965.0,0.0562195]
[1765983233779,0.11743834,88992.0,88963.0,0.35014497]
[1765983233780,0.0112374,89018.0,88994.0,0.0112402]
[1765983233978,0.0561685,89047.0,88960.0,0.0562226]
[1765983233979,0.00016862,88987.0,88976.0,0.0112424]
[1765983234282,0.00016862,88987.0,88948.0,0.0562306]
[1765983234283,0.00016853,88990.0,88930.0,0.35014497]
[1765983234482,0.0112421,88980.0,88959.0,0.0112446]
[1765983234679,0.55799497,89000.0,88957.0,0.0112448]
[1765983234881,0.55799497,89000.0,88920.0,0.35014497]
[1765983234882,0.0112462,88948.0,88910.0,0.35014497]
[1765983235189,0.0674733,88953.0,88884.0,0.0562708]
[1765983235374,0.00016862,88938.0,88920.0,0.00016823]
[1765983235576,0.0112494,88923.0,88920.0,0.00016823]
[1765983235787,0.00012653,88937.0,88873.0,0.00013426]
[1765983235788,0.0112506,88913.0,88873.0,0.00013426]
[1765983236085,0.0112514,88906.0,88873.0,0.00013426]
[1765983236288,0.011254,88886.0,88873.0,0.00013426]
[1765983236501,1.37011424,88905.0,88855.0,0.0675471]
[1765983236502,0.0112519,88902.0,88855.0,0.0675471]
[1765983236687,1.37,88905.0,88865.0,0.0562829]
[1765983236688,0.00016873,88890.0,88865.0,0.0562829]
[1765983236987,0.00016873,88890.0,88846.0,0.0562951]
[1765983236988,0.00016873,88890.0,88878.0,0.0112549]
[1765983237183,0.00016873,88890.0,88850.0,0.0112584]
[1765983237387,0.00016873,88890.0,88826.0,0.0112615]
[1765983237388,8.855e-05,88889.0,88854.0,0.0112579]
[1765983237589,0.00016873,88880.0,88835.0,0.0112604]
[1765983237885,0.20785,88872.0,88855.0,0.0112578]
[1765983238085,0.20785,88872.0,88832.0,0.0112607]
[1765983238086,0.011256,88870.0,88832.0,0.0112607]
[1765983238287,0.0112566,88866.0,88850.0,0.0112585]
[1765983238587,0.00012461,88865.0,88821.0,9.423e-05]
[1765983238789,0.0112584,88851.0,88821.0,9.423e-05]
[1765983239084,8.688e-05,88850.0,88823.0,0.0112619]
[1765983239289,8.688e-05,88850.0,88821.0,9.423e-05]
[1765983239492,0.0112594,88843.0,88827.0,0.0112614]
[1765983239688,8.688e-05,88850.0,88821.0,9.423e-05]
[1765983239883,8.688e-05,88850.0,88844.0,0.0112592]
[1765983240078,8.688e-05,88850.0,88821.0,9.423e-05]
[1765983240278,1e-07,88852.0,88851.0,0.0112583]
[1765983240482,0.0112513,88907.0,88847.0,0.06116]
[1765983240684,0.20785,88888.0,88825.0,0.0563083]
[1765983240888,0.0112563,88867.0,88830.0,0.35014497]
[1765983241190,0.0112617,88825.0,88821.0,4.23e-06]
[1765983241388,0.20785,88847.0,88814.0,0.00016882]
[1765983241389,0.01142972,88832.0,88814.0,0.00016882]
[1765983241586,0.0112624,88819.0,88814.0,0.00016892]
[1765983241788,0.0112615,88826.0,88814.0,0.00016892]
[1765983241977,0.00016892,88832.0,88814.0,0.00016892]
[1765983242481,0.0112617,88825.0,88814.0,0.00016892]
[1765983242789,0.00011844,88831.0,88828.0,0.0112611]
[1765983242992,0.00011844,88831.0,88814.0,0.00016892]
[1765983242993,0.02821596,88877.0,88844.0,0.0112591]
[1765983243290,0.02821596,88877.0,88831.0,0.0675654]
[1765983243593,0.02821596,88877.0,88814.0,0.006]
[1765983243594,0.0675354,88871.0,88819.0,1.40792]
[1765983243784,0.20785,88842.0,88778.0,0.056338]
[1765983244087,0.20785,88842.0,88764.0,0.0676162]
[1765983244088,0.0001689,88819.0,88818.0,0.0112625]
[1765983244403,1.40792,88852.0,88818.0,0.0112625]
[1765983244404,0.7938,88892.0,88818.0,0.0563127]
[1765983244583,0.2191038,88888.0,88866.0,0.0112564]
[1765983244778,0.20785,88888.0,88833.0,0.0675638]
[1765983245096,0.20785,88888.0,88874.0,0.0112554]
[1765983245097,5.444e-05,88887.0,88874.0,0.0112554]
[1765983245387,5.444e-05,88887.0,88840.0,0.0675585]
[1765983245388,5.444e-05,88887.0,88882.0,0.0112543]
[1765983245887,1e-08,88889.0,88888.0,0.0112537]
[1765983246095,1e-08,88889.0,88872.0,0.00016877]
[1765983246692,0.01125361,88889.0,88872.0,0.00016877]
[1765983246890,0.2640985,88920.0,88872.0,0.00016877]
[1765983246891,0.056228,88953.0,88874.0,0.0562772]
[1765983247190,1.98292,88956.0,88884.0,0.0562707]
[1765983247386,0.0112479,88934.0,88909.0,0.011251]
[1765983247582,1.37,88955.0,88910.0,0.0112508]
[1765983247888,0.00016867,88941.0,88924.0,0.00016867]
[1765983248083,0.00016867,88941.0,88935.0,0.0112476]
[1765983248278,0.0112402,88995.0,88936.0,0.01758021]
[1765983248481,0.0112433,88970.0,88937.0,0.01757933]
[1765983248687,0.0112433,88970.0,88951.0,0.0112457]
[1765983248891,0.0112402,88995.0,88945.0,0.0112464]
[1765983249096,0.0112484,88930.0,88913.0,0.0112504]
[1765983249290,0.0112505,88913.0,88873.0,0.0675335]
[1765983249479,0.011252,88902.0,88897.0,0.00016867]
[1765983249679,0.19634,88920.0,88875.0,0.0562764]
[1765983249885,0.00016877,88906.0,88891.0,0.00016867]
[1765983250084,0.00016877,88907.0,88897.0,0.0112525]
[1765983250282,0.00016877,88911.0,88893.0,0.00016877]
[1765983250487,0.00010325,88910.0,88909.0,0.011251]
[1765983250690,0.00016877,88911.0,88909.0,0.011251]
[1765983250691,2e-08,88911.0,88909.0,0.011251]
[1765983250992,0.0562089,88983.0,88910.0,0.5025586]
[1765983251183,0.19634,88959.0,88910.0,0.1124834]
[1765983251384,0.0112465,88945.0,88929.0,0.0112483]
[1765983251587,0.19634,88959.0,88905.0,0.0562573]
[1765983251781,0.19634,88959.0,88899.0,0.0112522]
[1765983251782,0.19634,88959.0,88921.0,0.0562475]
[1765983251984,0.00011147,88941.0,88940.0,0.0112471]
[1765983252192,0.00011147,88949.0,88946.0,0.0112463]
[1765983252387,0.00011147,88956.0,88951.0,0.0112456]
[1765983252593,1.70273,88998.0,88939.0,0.00016867]
[1765983252594,0.00011147,88962.0,88961.0,0.0112444]
[1765983252792,0.0112408,88990.0,88977.0,0.0112424]
[1765983252982,1.57785,88998.0,88953.0,0.00016867]
[1765983253185,0.0112418,88982.0,88967.0,0.00016856]
[1765983253393,0.00011111,88983.0,88921.0,1.42532]
[1765983253693,0.00011111,88983.0,88900.0,0.42922429]
[1765983253694,1.57785,88998.0,88942.0,0.11239175]
[1765983254086,0.0112406,88992.0,88949.0,0.0562298]
[1765983254288,1.57785,88998.0,88928.0,0.0562426]
[1765983254494,0.0112449,88957.0,88954.0,0.00016856]
[1765983254689,0.19634,88958.0,88890.0,0.41797219]
[1765983254690,0.0112478,88935.0,88919.0,0.0112496]
[1765983254992,0.0112477,88936.0,88920.0,0.0112496]
[1765983255192,0.19634,88958.0,88908.0,0.011251]
[1765983255398,0.0112483,88931.0,88890.0,0.0112533]
[1765983255589,0.2525643,88958.0,88916.0,0.0112501]
[1765983255590,0.19634,88958.0,88916.0,0.0112501]
[1765983255786,0.00016867,88936.0,88919.0,0.00016867]
[1765983255992,0.00016867,88936.0,88934.0,0.0112477]
[1765983256387,0.0112431,88972.0,88959.0,0.0112446]
[1765983256588,0.03044,88993.0,88956.0,0.011245]
[1765983256792,0.0112452,88955.0,88937.0,0.0112474]
[1765983256995,0.0112434,88970.0,88926.0,0.0562444]
[1765983257197,0.0112426,88976.0,88931.0,0.0562408]
[1765983257390,0.00016867,88962.0,88961.0,0.0112444]
[1765983257589,0.20785,88998.0,88969.0,0.0112434]
[1765983257590,0.00016867,88970.0,88969.0,0.0112434]
[1765983257798,0.00016857,88978.0,88962.0,0.0112442]
[1765983257996,0.00016857,88978.0,88961.0,0.00016857]
[1765983257997,0.011244,88965.0,88961.0,0.00016857]
[1765983258797,0.011244,88965.0,88924.0,0.0001446]
[1765983258798,0.0112462,88948.0,88924.0,0.0001446]
[1765983259017,0.19634,88956.0,88924.0,0.0001446]
[1765983259194,0.0112474,88938.0,88927.0,0.0112487]
[1765983259389,0.0112473,88939.0,88924.0,0.0001446]
[1765983259592,0.0112397,88999.0,88925.0,0.0112489]
[1765983259898,0.00016867,88963.0,88946.0,0.00016867]
[1765983260090,0.00016867,88963.0,88962.0,0.0112443]
[1765983260291,0.00016867,88963.0,88946.0,0.00016867]
[1765983260601,0.00016867,88963.0,88959.0,0.0112446]
[1765983260796,0.20785,88998.0,88958.0,0.0562242]
[1765983260996,0.20785,88998.0,88983.0,0.0112416]
[1765983260997,0.0112404,88994.0,88983.0,0.0112416]
[1765983261201,0.0112395,89001.0,88961.0,0.0562218]
[1765983261499,0.0112351,89035.0,88952.0,0.0562274]
[1765983261500,0.0112346,89040.0,88974.0,0.0562141]
[1765983261703,0.0112379,89014.0,88975.0,0.08113325]
[1765983261887,0.0112346,89040.0,88986.0,0.00016856]
[1765983261888,0.00016856,89003.0,88986.0,0.00016856]
[1765983262090,0.0112411,88987.0,88952.0,1.4068]
[1765983262301,0.0112398,88998.0,88961.0,0.0112444]
[1765983262600,0.19634,88992.0,88962.0,0.0112442]
[1765983262789,0.0112424,88978.0,88951.0,0.0112456]
[1765983262989,0.0112422,88979.0,88969.0,0.0112433]
[1765983263195,0.19634,88992.0,88965.0,0.00016856]
[1765983263196,0.0112438,88966.0,88965.0,0.00016856]
[1765983263389,0.0112408,88990.0,88928.0,0.0562428]
[1765983263590,0.0112425,88976.0,88934.0,0.0562393]
[1765983263897,0.02016,89022.0,88929.0,0.04631176]
[1765983263898,0.0112389,89005.0,88973.0,0.0112428]
[1765983264090,0.0112391,89004.0,88963.0,0.056221]
[1765983264292,0.03879278,89045.0,88975.0,0.00016856]
[1765983264293,0.00016856,88992.0,88975.0,0.00016856]
[1765983264492,0.00016856,88992.0,88991.0,0.0112406]
[1765983264694,6e-08,88992.0,88991.0,0.0112406]
[1765983264899,0.0112327,89055.0,88991.0,0.0112406]
[1765983264900,0.0112341,89043.0,89008.0,0.0112385]
[1765983265211,0.0561626,89056.0,88991.0,0.11238038]
[1765983265394,0.0112361,89027.0,89014.0,0.0112376]
[1765983265591,0.0112356,89032.0,89019.0,0.011237]
[1765983265792,1.37,89055.0,88999.0,0.0561982]
[1765983266002,0.00016856,89024.0,89007.0,0.00016856]
[1765983266303,0.0112342,89043.0,89036.0,0.0112349]
[1765983266600,0.0112335,89048.0,89018.0,0.0112372]
[1765983266793,0.0112335,89048.0,89036.0,0.0112349]
[1765983266989,0.0112323,89058.0,89024.0,0.0112364]
[1765983267188,0.00016844,89042.0,88978.0,0.0562111]
[1765983267393,0.19634,89064.0,89001.0,0.0561967]
[1765983267598,0.19634,89064.0,89035.0,0.011235]
[1765983267599,0.0112338,89045.0,89035.0,0.011235]
[1765983267791,0.0112338,89045.0,89008.0,0.0112384]
[1765983267792,0.19634,89064.0,89037.0,0.0112348]
[1765983267991,0.0112331,89051.0,89009.0,0.0561919]
[1765983268201,0.0112331,89051.0,89041.0,0.0112343]
[1765983268398,0.19634,89064.0,89018.0,0.01140564]
[1765983268598,0.0112346,89039.0,89018.0,0.00016844]
[1765983268802,0.0112346,89039.0,88971.0,0.0112431]
[1765983269091,0.0112346,89039.0,88970.0,0.41691209]
[1765983269092,0.0112392,89003.0,88992.0,0.0112404]
[1765983269293,0.0112392,89003.0,88965.0,1.40612]
[1765983269294,0.0112376,89016.0,88965.0,1.40612]
[1765983269493,0.19634,89012.0,88965.0,1.40612]
[1765983269704,0.19634,89012.0,88925.0,0.04062003]
[1765983269705,0.0112398,88998.0,88930.0,1.40604]
[1765983269897,0.011245,88957.0,88944.0,0.0112465]
[1765983270201,0.0674428,88993.0,88950.0,0.00016854]
[1765983270202,0.00016854,88968.0,88950.0,0.00016854]
[1765983270404,0.0112441,88964.0,88919.0,0.0562489]
[1765983270596,0.00016866,88954.0,88936.0,0.00016866]
[1765983270903,0.00016866,88954.0,88951.0,0.0112456]
[1765983270904,0.00010454,88953.0,88951.0,0.0112456]
[1765983271113,0.00016866,88954.0,88951.0,0.0112456]
[1765983271114,1e-07,88954.0,88951.0,0.0112456]
[1765983271290,0.19634,89012.0,88996.0,0.0112399]
[1765983271495,0.08920726,89042.0,89021.0,0.0112368]
[1765983271694,0.0112348,89038.0,88981.0,0.0112418]
[1765983271997,0.0112312,89066.0,88980.0,0.41691209]
[1765983271998,0.0112361,89027.0,89013.0,0.0112378]
[1765983272200,1.42164,89053.0,88980.0,0.41691209]
[1765983272201,0.0561718,89041.0,88980.0,0.41691209]
[1765983272408,0.0112383,89010.0,88999.0,0.0112396]
[1765983272597,0.0112383,89010.0,88998.0,0.00016853]
[1765983272902,0.00016853,89016.0,89013.0,0.0112378]
[1765983273213,0.00016853,89016.0,89011.0,0.011238]
[1765983273593,0.00016853,89016.0,88998.0,0.00016853]
[1765983273996,0.19634,89005.0,88959.0,0.0562236]
[1765983274304,0.19634,89005.0,88950.0,0.41691209]
[1765983274305,0.05501583,89058.0,88973.0,0.0562146]
[1765983274501,0.0112388,89006.0,88992.0,0.0112404]
[1765983274802,0.0112354,89033.0,88971.0,0.0562159]
[1765983274990,0.0112342,89042.0,88971.0,0.0562159]
[1765983274991,1.44436,89032.0,88971.0,0.0562159]
[1765983275195,0.00016853,89011.0,89005.0,0.0112388]
[1765983275407,0.0112367,89023.0,89011.0,0.011238]
[1765983275703,0.00016853,89011.0,89006.0,0.0112387]
[1765983275920,0.00016853,89011.0,88961.0,0.02874259]
[1765983275921,0.0112402,88995.0,88961.0,0.02874259]
[1765983276092,0.0112418,88982.0,88967.0,0.0112436]
[1765983276401,0.0112415,88985.0,88976.0,0.0112425]
[1765983276602,0.0112415,88985.0,88934.0,0.02874259]
[1765983276603,0.0112425,88977.0,88935.0,0.0562388]
[1765983276899,0.0112443,88963.0,88952.0,0.0112455]
[1765983277102,0.00016853,88964.0,88941.0,0.0112469]
[1765983277304,0.0112476,88936.0,88929.0,0.3720484]
[1765983277502,0.0112476,88936.0,88906.0,0.05187133]
[1765983277503,0.3608,88935.0,88911.0,0.3608]
[1765983277699,0.00016863,88941.0,88938.0,0.0112473]
[1765983278008,0.3608,88945.0,88924.0,0.3608]
[1765983278312,0.00016863,88945.0,88943.0,0.0112466]
[1765983278691,0.00016863,88945.0,88916.0,0.0112501]
[1765983278892,0.00016863,88945.0,88943.0,0.0112467]
[1765983279503,0.20182,88944.0,88917.0,0.3608]
[1765983279703,3e-08,88945.0,88944.0,0.0112466]
[1765983280003,0.0112435,88969.0,88944.0,0.3608]
[1765983280203,0.3608,88965.0,88941.0,0.011247]
[1765983280400,0.0112441,88964.0,88949.0,0.3608]
[1765983280700,0.0112432,88971.0,88962.0,0.0112442]
[1765983280907,0.3608,88974.0,88970.0,0.0112432]
[1765983281098,0.00016863,88973.0,88970.0,0.0112432]
[1765983281299,3e-08,88973.0,88970.0,0.0112432]
[1765983282095,3e-08,88973.0,88969.0,0.0112434]
[1765983283298,3e-08,88973.0,88968.0,0.3608]
[1765983283299,3e-08,88973.0,88971.0,0.0112432]
[1765983284103,3e-08,88973.0,88972.0,0.02890192]
[1765983284507,0.0112375,89016.0,89010.0,0.0112381]
[1765983284707,0.19634,89046.0,89008.0,0.0112385]
[1765983284909,0.4169497,89077.0,89044.0,0.3608]
[1765983285117,0.011232,89060.0,89052.0,0.3608]
[1765983285408,0.3608,89077.0,89053.0,0.0112328]
[1765983285603,0.00016842,89065.0,89063.0,0.3608]
[1765983285913,0.0112331,89051.0,89047.0,0.00016842]
[1765983286102,0.0112368,89022.0,89017.0,0.3608]
[1765983286296,0.3608,89043.0,89021.0,0.3608]
[1765983286513,0.3720341,89043.0,89021.0,0.3608]
[1765983286807,0.05501583,89083.0,89006.0,0.0112387]
[1765983286808,1.7308,89075.0,89056.0,0.0112324]
[1765983287001,0.0112316,89063.0,89041.0,0.3608]
[1765983287202,0.36096842,89067.0,89051.0,0.3608]
[1765983287401,0.00016842,89067.0,89062.0,0.0112316]
[1765983287604,0.00016842,89067.0,89064.0,0.0112314]
[1765983287904,0.00016842,89067.0,89066.0,0.7216]
[1765983288305,0.00016842,89067.0,89064.0,0.0112314]
[1765983288712,0.00016842,89067.0,89059.0,0.0112319]
[1765983288897,0.0112318,89062.0,89049.0,0.00016842]
[1765983289202,0.0112332,89050.0,89049.0,0.00016842]
[1765983289400,0.3608,89061.0,89049.0,0.00016842]
[1765983289596,0.00016842,89067.0,89065.0,0.0112312]
[1765983289812,0.00016842,89067.0,89062.0,0.3608]
[1765983290008,0.00016842,89067.0,89063.0,0.0112315]
[1765983291397,0.3608,89097.0,89063.0,0.0112315]
[1765983291398,0.3608,89097.0,89088.0,0.0112283]
[1765983291604,0.3608,89089.0,89079.0,0.0112295]
[1765983291905,0.3608,89089.0,89074.0,0.3608]
[1765983292105,0.0112296,89079.0,89074.0,0.3608]
[1765983292312,0.3608,89097.0,89088.0,0.0112283]
[1765983292708,0.3608,89097.0,89083.0,0.3608]
[1765983292914,0.3608,89097.0,89074.0,0.3608]
[1765983292915,0.05501583,89165.0,89130.0,0.0561154]
[1765983293111,0.3608,89182.0,89116.0,0.0561245]
[1765983293112,0.05501583,89220.0,89165.0,0.0112187]
[1765983293306,0.05501583,89220.0,89135.0,0.0112224]
[1765983293307,0.0112146,89198.0,89168.0,0.0112182]
[1765983293504,0.00099999,89230.0,89145.0,0.1122116]
[1765983293816,0.00099999,89230.0,89100.0,0.06191572]
[1765983293817,0.011207,89259.0,89220.0,0.0112118]
[1765983294021,1.381207,89258.0,89232.0,0.0112102]
[1765983294314,0.0001681,89243.0,89238.0,0.0112094]
[1765983294520,0.0001681,89243.0,89221.0,0.0560585]
[1765983294521,0.0112024,89295.0,89263.0,0.0112063]
[1765983294718,0.0112035,89287.0,89237.0,0.0560484]
[1765983294903,0.00099999,89320.0,89233.0,0.40862667]
[1765983294904,0.0112031,89290.0,89255.0,0.0112074]
[1765983295215,0.0111897,89397.0,89260.0,0.0112067]
[1765983295216,0.0112025,89294.0,89260.0,0.0112067]
[1765983295413,0.016,89305.0,89246.0,0.0112085]
[1765983295414,0.0112048,89276.0,89246.0,0.0112085]
[1765983295718,1.45492,89309.0,89268.0,0.000168]
[1765983295719,0.000168,89286.0,89268.0,0.000168]
[1765983296014,0.05,89309.0,89269.0,1.4606278]
[1765983296219,0.0111855,89431.0,89269.0,1.4606278]
[1765983296220,0.0111891,89401.0,89354.0,0.011195]
[1765983296411,0.20182,89429.0,89355.0,1.46444]
[1765983296607,0.0111868,89420.0,89365.0,0.0111936]
[1765983296807,0.20182,89429.0,89345.0,0.011196]
[1765983296808,0.20182,89392.0,89345.0,0.011196]
[1765983297010,0.0111889,89403.0,89351.0,0.0111953]
[1765983297320,0.00016779,89377.0,89360.0,0.00016779]
[1765983298118,0.00016779,89377.0,89360.0,0.01136199]
[1765983298312,0.0559295,89427.0,89362.0,0.0111939]
[1765983298514,0.0559386,89413.0,89350.0,0.0111954]
[1765983298721,0.0559318,89424.0,89348.0,0.0111957]
[1765983298722,0.0559393,89412.0,89348.0,0.0111957]
[1765983298909,0.0111897,89397.0,89356.0,0.0111946]
[1765983299110,0.20182,89400.0,89355.0,0.0111948]
[1765983299318,0.00010971,89386.0,89369.0,0.00016779]
[1765983299615,0.0111922,89377.0,89344.0,0.0111961]
[1765983299818,0.0111914,89383.0,89343.0,0.01133969]
[1765983300021,0.0111935,89366.0,89343.0,0.00014339]
[1765983300317,0.0559482,89397.0,89290.0,0.04196]
[1765983300318,9.613e-05,89365.0,89290.0,0.04196]
[1765983300516,9.613e-05,89365.0,89266.0,0.0560297]
[1765983300517,0.0111979,89331.0,89293.0,0.0112025]
[1765983300823,0.0111965,89342.0,89301.0,0.0112016]
[1765983301013,0.61044667,89360.0,89282.0,0.0560198]
[1765983301014,0.20182,89360.0,89343.0,0.0111963]
[1765983301215,0.08795386,89392.0,89383.0,0.0111913]
[1765983301518,0.00013801,89391.0,89379.0,0.0111918]
[1765983301719,0.0111927,89372.0,89322.0,0.0559947]
[1765983302022,0.00013801,89391.0,89274.0,0.056025]
[1765983302023,0.20182,89360.0,89296.0,0.0560112]
[1765983302207,0.20182,89360.0,89270.0,0.46465397]